Workbook

Sheet Intro
R1: 2024-10-22
B5: Fencing Budgets Calculator
B6: Version 4.0a
O7: Directory
B8: David Bilderback | O8: Input Prices
B9: Extension Specialist | O9: Barbed Wire
B10: Office: (865) 200-4545 | O10: Woven Wire
B11: Email: db@utk.edu | O11: HT Fixed Knot
O12: HT Electric
D13: Becky Bowling | J13: Bob Moncier | O13: Poly Fence
D14: Extension Specialist | J14: Extension Agent III - Hawkins
C41: Programs in agriculture and natural resources, 4-H youth development, family and consumer sciences, and resource development.
C42: University of Tennessee Institute of Agriculture, U.S. Department of Agriculture and country governments cooperating.
C43: UT Extension provide equal opportunities in programs and employment.

Sheet Input Prices
A1: Materials Cost
K3: Directory
A4: Materials | C4: Price | J4: Password - fence | K4: Intro
K5: Barbed Wire
A6: 8' Post 6"-7" | B6: ea. | C6: 17.5 | K6: Woven Wire
A7: 8' Posts 5"-6" | B7: ea. | C7: 14.99 | K7: HT Fixed Knot
A8: 8' Post 4"-5" | B8: ea. | C8: 11.99 | K8: HT Electric
A9: 8' Brace Post 4"-5" | B9: ea. | C9: 11.99 | K9: Poly Fence
A10: 10' Brace Post 4"-5" | B10: ea. | C10: 25.99
A11: Wire Conv. 1047-6-11 | B11: roll | C11: 367 | D11: 330 | E11: feet in roll | F11: =C11/D11 -> 1.112121212 | G11: per foot
A12: Wire HT 1047-6-12.5 | B12: roll | C12: 275 | D12: 330 | E12: feet in roll | F12: =C12/D12 -> 0.8333333333 | G12: per foot
A13: Wire HT 949-6 Fixed Knot | B13: roll | C13: 279 | D13: 330 | E13: feet in roll | F13: 0.8454545455 | G13: per foot
A14: Barbed Wire - Conv. 12 1/2 | B14: roll | C14: 135 | D14: 1320 | E14: feet in roll | F14: 0.1022727273 | G14: per foot
A15: Barbed Wire - HT 15 1/2 | B15: roll | C15: 59.99 | D15: 1320 | E15: feet in roll | F15: 0.0454469697 | G15: per foot
A16: Gate - 14' | B16: ea. | C16: 181
A17: Brace pins 1 - 10" & 1 - 5" | B17: ea. | C17: 2.16
A18: Brace Wire | B18: ft. | C18: 139.99 | D18: 4000 | E18: feet in roll | F18: =C18/D18 -> 0.0349975 | G18: per foot
A19: High Tensile Wire 12.5 Gauge | B19: ft. | C19: 139.99 | D19: 4000 | E19: feet in roll | F19: =C19/D19 -> 0.0349975 | G19: per foot
A20: Springs | B20: ea. | C20: 10.99
A21: Inline Strainers | B21: ea. | C21: 3.49
A22: Battens 40" | B22: ea. | C22: 3.95
A23: Batten Clips | B23: ea. | C23: 0.06
A24: Insulators | B24: ea. | C24: 0.3
A25: Long Crimp Sleeves | B25: ea. | C25: 0.3
A26: Bull Nose Insulators | B26: ea. | C26: 1.6
A27: Staples - Barbed For HT | B27: lbs. | C27: 2.35
A28: Staples - Standards | B28: lbs. | C28: 1.99
A29: T-Posts 6 FT | B29: ea. | C29: 4.99
A30: T-Post Clips | B30: ea. | C30: 0.07
A31: Step-in Fiberglass Post | B31: ea. | C31: 2.69
A32: Polywire | B32: roll | C32: 35.99 | D32: 1312 | E32: feet in roll | F32: =C32/D32 -> 0.02743140244 | G32: per foot
A33: Polytape | B33: roll | C33: 33 | D33: 660 | E33: feet in roll | F33: =C33/D33 -> 0.05 | G33: per foot
A34: Cut-Out Switch | B34: ea. | C34: 15.99
A35: Reel | B35: ea. | C35: 39
A36: Handle | B36: ea. | C36: 3.99
A37: Electric Fence Charger | B37: ea. | C37: 229
A38: Ground Rods and Clamps | B38: ea. | C38: 20
A39: Materials Sales Tax | B39: % | C39: 0.0945
A42: Fencing Tools
A43: T-Post Driver | C43: 44
A44: Barb Wire Roller | C44: 7.99
A45: Multi-Purpose Fence Pliers | C45: 16.99
A46: 3⁄8" Ship Auger Drill Bit | C46: 28.99
A47: Strainer Handle | C47: 5.99
A48: Come along | C48: 23.99
A49: Stretcher bar | C49: 139.75
A50: Chain | C50: 60
A51: Multi-Function Fencing Tool | C51: 69.75
A52: Spinning Jenny | C52: 34.99
A56: Average Annual Maintenance (%) | C56: 0.05
A57: Interest Rate on Investment | C57: 0.06
A100: Materials | C100: Price
A102: 8' Post 6"-7" | B102: ea. | C102: 17.5
A103: 8' Posts 5"-6" | B103: ea. | C103: 14.99
A104: 8' Post 4"-5" | B104: ea. | C104: 11.99
A105: 8' Brace Post 4"-5" | B105: ea. | C105: 11.99
A106: 10' Brace Post 4"-5" | B106: ea. | C106: 25.99
A107: Wire Conv. 1047-6-11 | B107: roll | C107: 367 | D107: 330 | E107: feet in roll | F107: =C107/D107 -> 1.112121212 | G107: per foot
A108: Wire HT 1047-6-12.5 | B108: roll | C108: 275 | D108: 330 | E108: feet in roll | F108: =C108/D108 -> 0.8333333333 | G108: per foot
A109: Wire HT 949-6 Fixed Knot | B109: roll | C109: 279 | D109: 330 | E109: feet in roll | F109: 0.8454545455 | G109: per foot
A110: Barbed Wire - Conv. 12 1/2 | B110: roll | C110: 135 | D110: 1320 | E110: feet in roll | F110: 0.1022727273 | G110: per foot
A111: Barbed Wire - HT 15 1/2 | B111: roll | C111: 59.99 | D111: 1320 | E111: feet in roll | F111: 0.0454469697 | G111: per foot
A112: Gate - 14' | B112: ea. | C112: 181
A113: Brace pins 1 - 10" & 1 - 5" | B113: ea. | C113: 2.16
A114: Brace Wire | B114: ft. | C114: 139.99 | D114: 4000 | E114: feet in roll | F114: =C114/D114 -> 0.0349975 | G114: per foot
A115: High Tensile Wire 12.5 Gauge | B115: ft. | C115: 139.99 | D115: 4000 | E115: feet in roll | F115: =C115/D115 -> 0.0349975 | G115: per foot
A116: Springs | B116: ea. | C116: 10.99
A117: Inline Strainers | B117: ea. | C117: 3.49
A118: Battens 40" | B118: ea. | C118: 3.95
A119: Batten Clips | B119: ea. | C119: 0.06
A120: Insulators | B120: ea. | C120: 0.3
A121: Long Crimp Sleeves | B121: ea. | C121: 0.3
A122: Bull Nose Insulators | B122: ea. | C122: 1.6
A123: Staples - Barbed For HT | B123: lbs. | C123: 2.35
A124: Staples - Standards | B124: lbs. | C124: 1.99
A125: T-Posts 6 FT | B125: ea. | C125: 4.99
A126: T-Post Clips | B126: ea. | C126: 0.07
A127: Step-in Fiberglass Post | B127: ea. | C127: 2.69
A128: Polywire | B128: roll | C128: 35.99 | D128: 1312 | E128: feet in roll | F128: =C128/D128 -> 0.02743140244 | G128: per foot
A129: Polytape | B129: roll | C129: 33 | D129: 660 | E129: feet in roll | F129: =C129/D129 -> 0.05 | G129: per foot
A130: Cut-Out Switch | B130: ea. | C130: 15.99
A131: Reel | B131: ea. | C131: 39
A132: Handle | B132: ea. | C132: 3.99
A133: Electric Fence Charger | B133: ea. | C133: 229
A134: Ground Rods and Clamps | B134: ea. | C134: 20
A135: Materials Sales Tax | B135: % | C135: 0.0945
A138: Fencing Tools
A139: T-Post Driver | C139: 44
A140: Barb Wire Roller | C140: 7.99
A141: Multi-Purpose Fence Pliers | C141: 16.99
A142: 3⁄8" Ship Auger Drill Bit | C142: 28.99
A143: Strainer Handle | C143: 5.99
A144: Come along | C144: 23.99
A145: Stretcher bar | C145: 139.75
A146: Chain | C146: 60
A147: Multi-Function Fencing Tool | C147: 69.75
A148: Spinning Jenny | C148: 34.99
A152: Average Annual Maintenance (%) | C152: 0.05
A153: Interest Rate on Investment | C153: 0.06

Sheet Braces
A2: 8 ft H Brace | E2: 8
A3: ITEM | B3: UNIT | C3: PRICE | D3: QUANTITY | E3: TOTAL
A4: 8' Post 6"-7" | B4: ea | C4: ='Input Prices'!C6 -> 17.5 | D4: 2 | E4: =C4*D4 -> 35
A5: 8' Brace Post 4"-5" | B5: ea | C5: ='Input Prices'!C9 -> 11.99 | D5: 1 | E5: =C5*D5 -> 11.99
A6: Inline Strainers | B6: ea | C6: ='Input Prices'!C21 -> 3.49 | D6: 1 | E6: 3.49
A7: Brace pins 1 - 10" & 1 - 5" | B7: ea | C7: ='Input Prices'!C17 -> 2.16 | D7: 1 | E7: 2.16
A8: Brace Wire | B8: ft | C8: ='Input Prices'!F18 -> 0.0349975 | D8: 30 | E8: 1.049925
E9: =SUM(E4:E8) -> 53.689925
A13: 10 ft H Brace | E13: 8
A14: ITEM | B14: UNIT | C14: PRICE | D14: QUANTITY | E14: TOTAL
A15: 8' Post 6"-7" | B15: ea | C15: ='Input Prices'!C6 -> 17.5 | D15: 2 | E15: =C15*D15 -> 35
A16: 10' Brace Post 4"-5" | B16: ea | C16: ='Input Prices'!C10 -> 25.99 | D16: 1 | E16: =C16*D16 -> 25.99
A17: Inline Strainers | B17: ea | C17: ='Input Prices'!C21 -> 3.49 | D17: 1 | E17: 3.49
A18: Brace pins 1 - 10" & 1 - 5" | B18: ea | C18: ='Input Prices'!C17 -> 2.16 | D18: 1 | E18: 2.16
A19: Brace Wire | B19: ft | C19: ='Input Prices'!F18 -> 0.0349975 | D19: 45 | E19: 1.5748875
E20: =SUM(E15:E19) -> 68.2148875
A24: 8 ft Double H Brace | E24: 16 | G24: Barbed
A25: ITEM | B25: UNIT | C25: PRICE | D25: QUANTITY | E25: TOTAL | G25: 1
A26: 8' Post 6"-7" | B26: ea | C26: ='Input Prices'!C6 -> 17.5 | D26: 3 | E26: =C26*D26 -> 52.5 | G26: 8 ft H Brace
A27: 8' Brace Post 4"-5" | B27: ea | C27: ='Barbed Wire'!C15 -> 11.99 | D27: 2 | E27: =C27*D27 -> 23.98 | G27: 10 ft H Brace
A28: Inline Strainers | B28: ea | C28: ='Input Prices'!C21 -> 3.49 | D28: 2 | E28: 6.98 | G28: 8 ft Double H Brace
A29: Brace pins 1 - 10" & 1 - 5" | B29: ea | C29: ='Input Prices'!C17 -> 2.16 | D29: 2 | E29: 4.32
A30: Brace Wire | B30: ft | C30: ='Input Prices'!F18 -> 0.0349975 | D30: 60 | E30: 2.09985
E31: =SUM(E26:E30) -> 89.87985 | G31: Woven
G32: 1
G33: 8 ft H Brace
G34: 10 ft H Brace
G35: 8 ft Double H Brace
A37: Barbed Wire
G38: HT Fixed Knot
A39: =IF($G$25=1,"8 ft H Brace",IF($G$25=2,"10 ft H Brace",IF($G$25=3,"8 ft Double H Brace"," "))) -> 8 ft H Brace | E39: =IF($G$25=1,8,IF($G$25=2,8,IF($G$25=3,16," "))) -> 8 | G39: 1
A40: ITEM | B40: UNIT | C40: PRICE | D40: QUANTITY | E40: TOTAL | G40: 8 ft H Brace
A41: 8' Post 6"-7" | B41: ea | C41: ='Input Prices'!C6 -> 17.5 | D41: =IF($G$25=1,2,IF($G$25=2,2,IF($G$25=3,3," "))) -> 2 | E41: =C41*D41 -> 35 | G41: 10 ft H Brace
A42: =IF($G$25=1,+'Input Prices'!A9,IF($G$25=2,+'Input Prices'!A10,IF($G$25=3,+'Input Prices'!A9," "))) -> 8' Brace Post 4"-5" | B42: ea | C42: =IF($G$25=1,+'Input Prices'!C9,IF($G$25=2,+'Input Prices'!C10,IF($G$25=3,+'Input Prices'!C9," "))) -> 11.99 | D42: =IF($G$25=1,1,IF($G$25=2,1,IF($G$25=3,2," "))) -> 1 | E42: =C42*D42 -> 11.99 | G42: 8 ft Double H Brace
A43: Inline Strainers | B43: ea | C43: ='Input Prices'!C21 -> 3.49 | D43: =IF($G$25=1,1,IF($G$25=2,1,IF($G$25=3,2," "))) -> 1 | E43: 3.49
A44: Brace pins 1 - 10" & 1 - 5" | B44: ea | C44: ='Input Prices'!C17 -> 2.16 | D44: =IF($G$25=1,1,IF($G$25=2,1,IF($G$25=3,2," "))) -> 1 | E44: 2.16
A45: Brace Wire | B45: ft | C45: ='Input Prices'!F18 -> 0.0349975 | D45: =IF($G$25=1,30,IF($G$25=2,45,IF($G$25=3,60," "))) -> 30 | E45: 1.049925 | G45: HT Electric
E46: =SUM(E41:E45) -> 53.689925 | G46: 1
G47: 8 ft H Brace
A48: Woven Wire | G48: 10 ft H Brace
G49: 8 ft Double H Brace
A50: =IF($G$32=1,"8 ft H Brace",IF($G$32=2,"10 ft H Brace",IF($G$32=3,"8 ft Double H Brace"," "))) -> 8 ft H Brace | E50: =IF($G$32=1,8,IF($G$32=2,8,IF($G$32=3,16," "))) -> 8
A51: ITEM | B51: UNIT | C51: PRICE | D51: QUANTITY | E51: TOTAL
A52: 8' Post 6"-7" | B52: ea | C52: ='Input Prices'!C6 -> 17.5 | D52: =IF($G$32=1,2,IF($G$32=2,2,IF($G$32=3,3," "))) -> 2 | E52: =C52*D52 -> 35 | G52: Poly
A53: =IF($G$32=1,+'Input Prices'!A9,IF($G$32=2,+'Input Prices'!A10,IF($G$32=3,+'Input Prices'!A9," "))) -> 8' Brace Post 4"-5" | B53: ea | C53: =IF($G$32=1,+'Input Prices'!C9,IF($G$32=2,+'Input Prices'!C10,IF($G$32=3,+'Input Prices'!C9," "))) -> 11.99 | D53: =IF($G$32=1,1,IF($G$32=2,1,IF($G$32=3,2," "))) -> 1 | E53: =C53*D53 -> 11.99 | G53: 2
A54: Inline Strainers | B54: ea | C54: ='Input Prices'!C21 -> 3.49 | D54: =IF($G$32=1,1,IF($G$32=2,1,IF($G$32=3,2," "))) -> 1 | E54: 3.49 | G54: 8 ft H Brace
A55: Brace pins 1 - 10" & 1 - 5" | B55: ea | C55: ='Input Prices'!C17 -> 2.16 | D55: =IF($G$32=1,1,IF($G$32=2,1,IF($G$32=3,2," "))) -> 1 | E55: 2.16 | G55: 10 ft H Brace
A56: Brace Wire | B56: ft | C56: ='Input Prices'!F18 -> 0.0349975 | D56: =IF($G$32=1,30,IF($G$32=2,45,IF($G$32=3,60," "))) -> 30 | E56: 1.049925 | G56: 8 ft Double H Brace
E57: =SUM(E52:E56) -> 53.689925
A59: HT Fixed Knot
A61: =IF($G$39=1,"8 ft H Brace",IF($G$39=2,"10 ft H Brace",IF($G$39=3,"8 ft Double H Brace"," "))) -> 8 ft H Brace | E61: =IF($G$39=1,8,IF($G$39=2,8,IF($G$39=3,16," "))) -> 8
A62: ITEM | B62: UNIT | C62: PRICE | D62: QUANTITY | E62: TOTAL
A63: 8' Post 6"-7" | B63: ea | C63: ='Input Prices'!C6 -> 17.5 | D63: =IF($G$39=1,2,IF($G$39=2,2,IF($G$39=3,3," "))) -> 2 | E63: =C63*D63 -> 35
A64: =IF($G$39=1,+'Input Prices'!A9,IF($G$39=2,+'Input Prices'!A10,IF($G$39=3,+'Input Prices'!A9," "))) -> 8' Brace Post 4"-5" | B64: ea | C64: =IF($G$39=1,+'Input Prices'!C9,IF($G$39=2,+'Input Prices'!C10,IF($G$39=3,+'Input Prices'!C9," "))) -> 11.99 | D64: =IF($G$39=1,1,IF($G$39=2,1,IF($G$39=3,2," "))) -> 1 | E64: =C64*D64 -> 11.99
A65: Inline Strainers | B65: ea | C65: ='Input Prices'!C21 -> 3.49 | D65: =IF($G$39=1,1,IF($G$39=2,1,IF($G$39=3,2," "))) -> 1 | E65: 3.49
A66: Brace pins 1 - 10" & 1 - 5" | B66: ea | C66: ='Input Prices'!C17 -> 2.16 | D66: =IF($G$39=1,1,IF($G$39=2,1,IF($G$39=3,2," "))) -> 1 | E66: 2.16
A67: Brace Wire | B67: ft | C67: ='Input Prices'!F18 -> 0.0349975 | D67: =IF($G$39=1,30,IF($G$39=2,45,IF($G$39=3,60," "))) -> 30 | E67: 1.049925
E68: =SUM(E63:E67) -> 53.689925
A70: HT Electric
A72: =IF($G$46=1,"8 ft H Brace",IF($G$46=2,"10 ft H Brace",IF($G$46=3,"8 ft Double H Brace"," "))) -> 8 ft H Brace | E72: =IF($G$46=1,8,IF($G$46=2,8,IF($G$46=3,16," "))) -> 8
A73: ITEM | B73: UNIT | C73: PRICE | D73: QUANTITY | E73: TOTAL
A74: 8' Post 6"-7" | B74: ea | C74: ='Input Prices'!C6 -> 17.5 | D74: =IF($G$46=1,2,IF($G$46=2,2,IF($G$46=3,3," "))) -> 2 | E74: =C74*D74 -> 35
A75: =IF($G$46=1,+'Input Prices'!A9,IF($G$46=2,+'Input Prices'!A10,IF($G$46=3,+'Input Prices'!A9," "))) -> 8' Brace Post 4"-5" | B75: ea | C75: =IF($G$46=1,+'Input Prices'!C9,IF($G$46=2,+'Input Prices'!C10,IF($G$46=3,+'Input Prices'!C9," "))) -> 11.99 | D75: =IF($G$46=1,1,IF($G$46=2,1,IF($G$46=3,2," "))) -> 1 | E75: =C75*D75 -> 11.99
A76: Inline Strainers | B76: ea | C76: ='Input Prices'!C21 -> 3.49 | D76: =IF($G$46=1,1,IF($G$46=2,1,IF($G$46=3,2," "))) -> 1 | E76: 3.49
A77: Brace pins 1 - 10" & 1 - 5" | B77: ea | C77: ='Input Prices'!C17 -> 2.16 | D77: =IF($G$46=1,1,IF($G$46=2,1,IF($G$46=3,2," "))) -> 1 | E77: 2.16
A78: Brace Wire | B78: ft | C78: ='Input Prices'!F18 -> 0.0349975 | D78: =IF($G$46=1,30,IF($G$46=2,45,IF($G$46=3,60," "))) -> 30 | E78: 1.049925
E79: =SUM(E74:E78) -> 53.689925
A81: Poly
A83: =IF($G$53=1,"8 ft H Brace",IF($G$53=2,"10 ft H Brace",IF($G$53=3,"8 ft Double H Brace"," "))) -> 10 ft H Brace | E83: =IF($G$53=1,8,IF($G$53=2,8,IF($G$53=3,16," "))) -> 8
A84: ITEM | B84: UNIT | C84: PRICE | D84: QUANTITY | E84: TOTAL
A85: 8' Post 6"-7" | B85: ea | C85: ='Input Prices'!C6 -> 17.5 | D85: =IF($G$53=1,2,IF($G$53=2,2,IF($G$53=3,3," "))) -> 2 | E85: =C85*D85 -> 35
A86: =IF($G$53=1,+'Input Prices'!A9,IF($G$53=2,+'Input Prices'!A10,IF($G$53=3,+'Input Prices'!A9," "))) -> 10' Brace Post 4"-5" | B86: ea | C86: =IF($G$53=1,+'Input Prices'!C9,IF($G$53=2,+'Input Prices'!C10,IF($G$53=3,+'Input Prices'!C9," "))) -> 25.99 | D86: =IF($G$53=1,1,IF($G$53=2,1,IF($G$53=3,2," "))) -> 1 | E86: =C86*D86 -> 25.99
A87: Inline Strainers | B87: ea | C87: ='Input Prices'!C21 -> 3.49 | D87: =IF($G$53=1,1,IF($G$53=2,1,IF($G$53=3,2," "))) -> 1 | E87: 3.49
A88: Brace pins 1 - 10" & 1 - 5" | B88: ea | C88: ='Input Prices'!C17 -> 2.16 | D88: =IF($G$53=1,1,IF($G$53=2,1,IF($G$53=3,2," "))) -> 1 | E88: 2.16
A89: Brace Wire | B89: ft | C89: ='Input Prices'!F18 -> 0.0349975 | D89: =IF($G$53=1,30,IF($G$53=2,45,IF($G$53=3,60," "))) -> 45 | E89: 1.5748875
E90: =SUM(E85:E89) -> 68.2148875

Sheet Barbed Wire
K2: Directory
A3: Barbed Wire | K3: Intro
B4: 4 | C4: Strand | K4: Input Prices
B5: 1000 | C5: Feet | K5: Woven Wire
B6: 1 | C6: Gates | K6: HT Fixed Knot
C7: Brace Type | K7: HT Electric
B8: Brace Adjustment | K8: Poly Fence
B9: =$C$84 -> 4 | C9: Braces
G10: Your Cost
A11: ITEM | B11: UNIT | C11: PRICE | D11: QUANTITY | E11: TOTAL
A12: ='Input Prices'!A6 -> 8' Post 6"-7" | B12: ='Input Prices'!B6 -> ea. | C12: ='Input Prices'!$C$6 -> 17.5 | D12: =$B$9*Braces!$D$41 -> 8 | E12: =IF(D12>0,$C12*D12,0) -> 140
A13: ='Input Prices'!A7 -> 8' Posts 5"-6" | B13: ='Input Prices'!B7 -> ea. | C13: ='Input Prices'!$C$7 -> 14.99 | D13: 0 | E13: 0
A14: ='Input Prices'!A8 -> 8' Post 4"-5" | B14: ='Input Prices'!B8 -> ea. | C14: ='Input Prices'!$C$8 -> 11.99 | D14: =IF(ROUNDUP(((B$5-((B$9*Braces!$E$39)+(B$6*14)))/72)-(IF(C$82>2,C$82-2,2)),0)<0,0,ROUNDUP(((B$5-((B$9*Braces!$E$39)+(B$6*14)))/72)-(IF(C$82>2,C$82-2,2)),0)) -> 13 | E14: 155.87
A15: =+Braces!$A$42 -> 8' Brace Post 4"-5" | B15: ='Input Prices'!B9 -> ea. | C15: =+Braces!C42 -> 11.99 | D15: =$B$9*Braces!$D$42 -> 4 | E15: 47.96
A16: ='Input Prices'!A29 -> T-Posts 6 FT | B16: ='Input Prices'!B29 -> ea. | C16: ='Input Prices'!$C$29 -> 4.99 | D16: =ROUNDUP(((B$5-((B$9*Braces!$E$39)+(B$6*14)))/12)-D$14,0) -> 67 | E16: 334.33
A17: ='Input Prices'!A14 -> Barbed Wire - Conv. 12 1/2 | B17: ft. | C17: ='Input Prices'!$F$14 -> 0.1022727273 | D17: 0 | E17: 0
A18: ='Input Prices'!A15 -> Barbed Wire - HT 15 1/2 | B18: ft. | C18: ='Input Prices'!$F$15 -> 0.0454469697 | D18: =SUM($B$4*$B$5) -> 4000 | E18: 181.7878788
A19: ='Input Prices'!A17 -> Brace pins 1 - 10" & 1 - 5" | B19: ='Input Prices'!B17 -> ea. | C19: ='Input Prices'!$C$17 -> 2.16 | D19: =$B$9*Braces!$D$44 -> 4 | E19: 8.64
A20: ='Input Prices'!A18 -> Brace Wire | B20: ='Input Prices'!B18 -> ft. | C20: ='Input Prices'!$F$18 -> 0.0349975 | D20: =$B$9*Braces!$D$45 -> 120 | E20: 4.1997
A21: ='Input Prices'!A21 -> Inline Strainers | B21: ='Input Prices'!B21 -> ea. | C21: ='Input Prices'!$C$21 -> 3.49 | D21: =$B$9*Braces!$D$43 -> 4 | E21: 13.96
A22: ='Input Prices'!A16 -> Gate - 14' | B22: ='Input Prices'!B16 -> ea. | C22: ='Input Prices'!$C$16 -> 181 | D22: =$B$6 -> 1 | E22: 181
A23: ='Input Prices'!A30 -> T-Post Clips | B23: ='Input Prices'!B30 -> ea. | C23: ='Input Prices'!$C$30 -> 0.07 | D23: =$D$16*$B$4 -> 268 | E23: 18.76
A24: ='Input Prices'!A28 -> Staples - Standards | B24: ='Input Prices'!B28 -> lbs. | C24: ='Input Prices'!$C$28 -> 1.99 | D24: =SUM($D$12:$D$14)*0.15 -> 3.15 | E24: 6.2685
A25: Other | B25: unit | C25: 0 | D25: 0 | E25: =IF(D25>0,$C25*D25,0) -> 0
A26: Other | B26: unit | C26: 0 | D26: 0 | E26: =IF(D26>0,$C26*D26,0) -> 0
A27: Other | B27: unit | C27: 0 | D27: 0 | E27: =IF(D27>0,$C27*D27,0) -> 0
A28: Other | B28: unit | C28: 0 | D28: 0 | E28: =IF(D28>0,$C28*D28,0) -> 0
A29: ='Input Prices'!A39 -> Materials Sales Tax | B29: ='Input Prices'!B39 -> % | C29: ='Input Prices'!$C$39 -> 0.0945 | E29: =SUM(E12:E28)*($C$29) -> 103.2673394
A30: Labor Cost | B30: ft. | C30: 1.38 | D30: =+$B$5 -> 1000 | E30: =IF(D30>0,$C30*D30,0) -> 1380
A31: Total Cost | E31: =SUM(E12:E30) -> 2576.043418
A32: Total Cost Per Foot | E32: =E31/B5 -> 2.576043418
A34: Material Cost | E34: =SUM(E12:E29) -> 1196.043418
A35: Material Cost Per Foot | E35: =E34/B5 -> 1.196043418
A37: Labor Cost | E37: =SUM(E30) -> 1380
A38: Labor Cost Per Foot | E38: =E37/B5 -> 1.38
A40: Annual Cost | E40: =C63 -> 277.3144296
A41: Annual Cost Per Foot | E41: =E40/B5 -> 0.2773144296
A43: Assumptions - UT Extension PB1541
A44: Brace every 650 feet
A45: Inline strainer used to tension brace wire
A46: Wooden post every 72 feet
A47: T-Post every 12 feet
A48: All brace posts driven 48" in ground
A50: Labor Requirements - Source (UT Extension Custom Rate Survey - AE13-06)
C53: =+B4 -> 4
C54: Strand
C55: Barbed Wire
A56: Annual Cost | C56: Treated Post
A57: Estimated Useful Life | C57: 19
A58: Average Annual Maintenance (%) | C58: =+'Input Prices'!$C$56 -> 0.05
A59: Depreciation | C59: =E34/C57 -> 62.94965359
A60: Interest Rate on Investment | C60: =+'Input Prices'!$C$57 -> 0.06
A61: Interest on Investment | C61: =E31*C60 -> 154.5626051
A62: Maintenance | C62: =E34*C58 -> 59.80217091
A63: Total Cost | C63: =C59+C61+C62 -> 277.3144296
A65: Fencing Tools
A66: T-Post Driver | B66: =+'Input Prices'!$C$43 -> 44
A67: Barb Wire Roller | B67: =+'Input Prices'!$C$44 -> 7.99
A68: Multi-Purpose Fence Pliers | B68: =+'Input Prices'!$C$45 -> 16.99
A69: 3⁄8" Ship Auger Drill Bit | B69: =+'Input Prices'!$C$46 -> 28.99
A70: Strainer Handle | B70: =+'Input Prices'!$C$47 -> 5.99
A71: Come Along | B71: =+'Input Prices'!$C$48 -> 23.99
A72: Other | B72: 0
A73: Other | B73: 0
A74: Other | B74: 0
A75: Tax | B75: =SUM(B66:B74)*'Input Prices'!C39 -> 12.091275
A76: Total | B76: =SUM(B66:B75) -> 140.041275
A77: Cost per Ft | B77: =B76/B5 -> 0.140041275
B81: braces | C81: roundup
A82: Fence Braces | B82: =1+(B5/650) -> 2.538461538 | C82: =ROUNDUP(B82,0) -> 3
A83: Gate and Brace | B83: =B6 -> 1 | C83: =ROUNDUP(B83,0) -> 1
A84: Total | C84: =SUM(C82:C83) -> 4
A90: Barbed Wire
B91: 4 | C91: Strand
B92: 1000 | C92: Feet
B93: 1 | C93: Gate
C94: Brace Type
B95: Brace Adjustment
B96: =$C$84 -> 4 | C96: Braces
A98: ITEM | B98: UNIT | C98: PRICE | D98: QUANTITY | E98: TOTAL
A99: ='Input Prices'!A102 -> 8' Post 6"-7" | B99: ='Input Prices'!B102 -> ea. | C99: ='Input Prices'!$C$6 -> 17.5 | D99: =$B$9*Braces!$D$41 -> 8 | E99: =IF(D99>0,$C99*D99,0) -> 140
A100: ='Input Prices'!A103 -> 8' Posts 5"-6" | B100: ='Input Prices'!B103 -> ea. | C100: ='Input Prices'!$C$7 -> 14.99 | D100: 0 | E100: 0
A101: ='Input Prices'!A104 -> 8' Post 4"-5" | B101: ='Input Prices'!B104 -> ea. | C101: ='Input Prices'!$C$8 -> 11.99 | D101: =IF(ROUNDUP(((B$5-((B$9*Braces!$E$39)+(B$6*14)))/72)-(IF(C$82>2,C$82-2,2)),0)<0,0,ROUNDUP(((B$5-((B$9*Braces!$E$39)+(B$6*14)))/72)-(IF(C$82>2,C$82-2,2)),0)) -> 13 | E101: 155.87
A102: =+Braces!$A$42 -> 8' Brace Post 4"-5" | B102: ='Input Prices'!B105 -> ea. | C102: =+Braces!C42 -> 11.99 | D102: =$B$9*Braces!$D$42 -> 4 | E102: 47.96
A103: ='Input Prices'!A125 -> T-Posts 6 FT | B103: ='Input Prices'!B125 -> ea. | C103: ='Input Prices'!$C$29 -> 4.99 | D103: =ROUNDUP(((B$5-((B$9*Braces!$E$39)+(B$6*14)))/12)-D$14,0) -> 67 | E103: 334.33
A104: ='Input Prices'!A110 -> Barbed Wire - Conv. 12 1/2 | B104: ft. | C104: ='Input Prices'!$F$14 -> 0.1022727273 | D104: 0 | E104: 0
A105: ='Input Prices'!A111 -> Barbed Wire - HT 15 1/2 | B105: ft. | C105: ='Input Prices'!$F$15 -> 0.0454469697 | D105: =SUM($B$4*$B$5) -> 4000 | E105: 181.7878788
A106: ='Input Prices'!A113 -> Brace pins 1 - 10" & 1 - 5" | B106: ='Input Prices'!B113 -> ea. | C106: ='Input Prices'!$C$17 -> 2.16 | D106: =$B$9*Braces!$D$44 -> 4 | E106: 8.64
A107: ='Input Prices'!A114 -> Brace Wire | B107: ='Input Prices'!B114 -> ft. | C107: ='Input Prices'!$F$18 -> 0.0349975 | D107: =$B$9*Braces!$D$45 -> 120 | E107: 4.1997
A108: ='Input Prices'!A117 -> Inline Strainers | B108: ='Input Prices'!B117 -> ea. | C108: ='Input Prices'!$C$21 -> 3.49 | D108: =$B$9*Braces!$D$43 -> 4 | E108: 13.96
A109: ='Input Prices'!A112 -> Gate - 14' | B109: ='Input Prices'!B112 -> ea. | C109: ='Input Prices'!$C$16 -> 181 | D109: =$B$6 -> 1 | E109: 181
A110: ='Input Prices'!A126 -> T-Post Clips | B110: ='Input Prices'!B126 -> ea. | C110: ='Input Prices'!$C$30 -> 0.07 | D110: =$D$16*$B$4 -> 268 | E110: 18.76
A111: ='Input Prices'!A124 -> Staples - Standards | B111: ='Input Prices'!B124 -> lbs. | C111: ='Input Prices'!$C$28 -> 1.99 | D111: =SUM($D$12:$D$14)*0.15 -> 3.15 | E111: 6.2685
A112: Other | B112: unit | C112: 0 | D112: 0 | E112: =IF(D112>0,$C112*D112,0) -> 0
A113: Other | B113: unit | C113: 0 | D113: 0 | E113: =IF(D113>0,$C113*D113,0) -> 0
A114: Other | B114: unit | C114: 0 | D114: 0 | E114: =IF(D114>0,$C114*D114,0) -> 0
A115: Other | B115: unit | C115: 0 | D115: 0 | E115: =IF(D115>0,$C115*D115,0) -> 0
A116: ='Input Prices'!A135 -> Materials Sales Tax | B116: ='Input Prices'!B135 -> % | C116: ='Input Prices'!$C$39 -> 0.0945 | E116: =SUM(E99:E115)*($C$29) -> 103.2673394
A117: Labor Cost | B117: ft. | C117: 1.38 | D117: =+$B$5 -> 1000 | E117: =IF(D117>0,$C117*D117,0) -> 1380
A118: Total Cost | E118: =SUM(E99:E117) -> 2576.043418
A119: Total Cost Per Foot | E119: =E118/B92 -> 2.576043418
A121: Material Cost | E121: =SUM(E99:E116) -> 1196.043418
A122: Material Cost Per Foot | E122: =E121/B92 -> 1.196043418
A124: Labor Cost | E124: =SUM(E117) -> 1380
A125: Labor Cost Per Foot | E125: =E124/B92 -> 1.38
A127: Annual Maintenance Cost | E127: =C150 -> 277.3144296
A128: Annual Maintenance Cost Per Foot | E128: =E127/B92 -> 0.2773144296
A130: Assumptions - UT Extension PB1541
A131: Brace every 650 feet, double braces
A132: Inline strainer used to tension brace wire
A133: Wooden post every 72 feet,
A134: T-Post every 12
A135: 8 Ft between brace posts
A136: All brace posts driven 48" in ground
A138: Labor Requirements - Source (UT Extension Custom Rate Survey - AE13-06)
C140: =+B91 -> 4
C141: Strand
C142: Barbed Wire
A143: Annual Maintenance Cost | C143: Treated Post
A144: Estimated Useful Life | C144: 19
A145: Average Annual Maintenance (%) | C145: =+'Input Prices'!$C$56 -> 0.05
A146: Depreciation | C146: =E121/C144 -> 62.94965359
A147: Interest Rate on Investment | C147: =+'Input Prices'!$C$57 -> 0.06
A148: Interest on Investment | C148: =E118*C147 -> 154.5626051
A149: Maintenance | C149: =E121*C145 -> 59.80217091
A150: Total Cost | C150: =C146+C148+C149 -> 277.3144296
A152: Fencing Tools
A153: T-Post Driver | B153: =+'Input Prices'!$C$43 -> 44
A154: Barb Wire Roller | B154: =+'Input Prices'!$C$44 -> 7.99
A155: Multi-Purpose Fence Pliers | B155: =+'Input Prices'!$C$45 -> 16.99
A156: 3⁄8" Ship Auger Drill Bit | B156: =+'Input Prices'!$C$46 -> 28.99
A157: Strainer Handle | B157: =+'Input Prices'!$C$47 -> 5.99
A158: Come Along | B158: =+'Input Prices'!$C$48 -> 23.99
A159: Other | B159: 0
A160: Other | B160: 0
A161: Other | B161: 0
A162: Tax | B162: =SUM(B153:B161)*'Input Prices'!C126 -> 8.9565
A163: Total | B163: =SUM(B153:B162) -> 136.9065
A164: Cost per ft | B164: =B163/B92 -> 0.1369065

Sheet Woven Wire
A3: Woven Wire | L3: Directory
B4: 1 | C4: Strands of barb wire | L4: Intro
B5: 1000 | C5: Feet | L5: Input Prices
B6: 1 | C6: Gates | L6: Barbed Wire
C7: Brace Type | L7: HT Fixed Knot
B8: Brace Adjustment | L8: HT Electric
B9: =+$C$89 -> 6 | C9: Braces | G9: Your Cost | L9: Poly Fence
A12: ITEM | B12: UNIT | C12: PRICE | D12: QUANTITY | E12: TOTAL
A13: ='Input Prices'!A6 -> 8' Post 6"-7" | B13: ='Input Prices'!B6 -> ea. | C13: ='Input Prices'!$C$6 -> 17.5 | D13: =$B$9*Braces!$D$52 -> 12 | E13: =IF(D13>0,D13*$C13,0) -> 210
A14: ='Input Prices'!A7 -> 8' Posts 5"-6" | B14: ='Input Prices'!B7 -> ea. | C14: ='Input Prices'!$C$7 -> 14.99 | D14: 0 | E14: 0
A15: ='Input Prices'!A8 -> 8' Post 4"-5" | B15: ='Input Prices'!B8 -> ea. | C15: ='Input Prices'!$C$8 -> 11.99 | D15: =IF(ROUNDUP((($B$5-(($B$9*Braces!$E$50)+($B$6*14)))/75)-(IF($C$87>2,$C$87-2,2)),0)<0,0,ROUNDUP((($B$5-(($B$9*Braces!$E$50)+($B$6*14)))/75)-(IF($C$87>2,$C$87-2,2)),0)) -> 10 | E15: 119.9
A16: =+Braces!$A$53 -> 8' Brace Post 4"-5" | B16: ='Input Prices'!B9 -> ea. | C16: =+Braces!$C$53 -> 11.99 | D16: =$B$9*Braces!$D$53 -> 6 | E16: 71.94
A17: ='Input Prices'!A29 -> T-Posts 6 FT | B17: ='Input Prices'!B29 -> ea. | C17: ='Input Prices'!$C$29 -> 4.99 | D17: =ROUNDUP((($B$5-(($B$9*Braces!$E$50)+($B$6*14)))/15)-$D$15,0) -> 53 | E17: 264.47
A18: ='Input Prices'!A11 -> Wire Conv. 1047-6-11 | B18: ft. | C18: ='Input Prices'!$F$11 -> 1.112121212 | D18: 1000 | E18: 1112.121212
A19: ='Input Prices'!A12 -> Wire HT 1047-6-12.5 | B19: ft. | C19: ='Input Prices'!$F$12 -> 0.8333333333 | D19: 0 | E19: 0
A20: ='Input Prices'!A14 -> Barbed Wire - Conv. 12 1/2 | B20: ft. | C20: ='Input Prices'!$F$14 -> 0.1022727273 | D20: 0 | E20: 0
A21: ='Input Prices'!A15 -> Barbed Wire - HT 15 1/2 | B21: ft. | C21: ='Input Prices'!$F$15 -> 0.0454469697 | D21: =$B$5*$B$4 -> 1000 | E21: 45.4469697
A22: ='Input Prices'!A16 -> Gate - 14' | B22: ='Input Prices'!B16 -> ea. | C22: ='Input Prices'!$C$16 -> 181 | D22: =$B$6 -> 1 | E22: 181
A23: ='Input Prices'!A17 -> Brace pins 1 - 10" & 1 - 5" | B23: ='Input Prices'!B17 -> ea. | C23: ='Input Prices'!$C$17 -> 2.16 | D23: =$B$9*Braces!$D$55 -> 6 | E23: 12.96
A24: ='Input Prices'!A18 -> Brace Wire | B24: ='Input Prices'!B18 -> ft. | C24: ='Input Prices'!$F$18 -> 0.0349975 | D24: =$B$9*Braces!$D$56 -> 180 | E24: 6.29955
A25: ='Input Prices'!A21 -> Inline Strainers | B25: ='Input Prices'!B21 -> ea. | C25: ='Input Prices'!$C$21 -> 3.49 | D25: =$B$9*Braces!$D$54 -> 6 | E25: 20.94
A26: ='Input Prices'!A28 -> Staples - Standards | B26: ='Input Prices'!B28 -> lbs. | C26: ='Input Prices'!$C$28 -> 1.99 | D26: =SUM($D$13:$D$15)*0.15 -> 3.3 | E26: 6.567
A27: ='Input Prices'!A30 -> T-Post Clips | B27: ='Input Prices'!B30 -> ea. | C27: ='Input Prices'!$C$30 -> 0.07 | D27: =$D$17*(5+$B$4) -> 318 | E27: 22.26
A28: Other | B28: unit | C28: 0 | D28: 0 | E28: 0
A29: Other | B29: unit | C29: 0 | D29: 0 | E29: 0
A30: Other | B30: unit | C30: 0 | D30: 0 | E30: 0
A31: Other | B31: unit | C31: 0 | D31: 0 | E31: 0
A32: ='Input Prices'!A39 -> Materials Sales Tax | B32: ='Input Prices'!B39 -> % | C32: ='Input Prices'!$C$39 -> 0.0945 | E32: =SUM(E13:E31)*($C$32) -> 195.9839972
A33: Labor Cost | B33: ft. | C33: 3.25 | D33: =+$B$5 -> 1000 | E33: =IF(D33>0,D33*$C33,0) -> 3250
A34: Total Cost | E34: =SUM(E13:E33) -> 5519.888729
A35: Total Cost Per Foot | E35: =E34/B5 -> 5.519888729
A37: Material Cost | E37: =SUM(E13:E32) -> 2269.888729
A38: Material Cost Per Foot | E38: =E37/B5 -> 2.269888729
A40: Labor Cost | E40: =SUM(E33:E33) -> 3250
A41: Labor Cost Per Foot | E41: =E40/B5 -> 3.25
A43: Annual Cost | E43: =C66 -> 564.155588
A44: Annual Cost Per Foot | E44: =E43/B5 -> 0.564155588
A46: Assumptions - UT Extension PB1541 & Manufacturers Specs
A47: Brace every 330 feet
A48: Inline strainer used to tension brace wire
A49: Wooden post every 75 feet
A50: T-Post every 15 feet
A51: All brace posts driven 48" in ground
A54: Labor Requirements - Source (UT Extension Custom Rate Survey - AE13-06)
A59: AnnualCost | B59: Woven Wire
A60: Estimated Useful Life | C60: 19
A61: Average Annual Maintenance (%) | C61: =+'Input Prices'!$C$56 -> 0.05
A62: Depreciation | C62: =E37/C60 -> 119.4678278
A63: Interest Rate on Investment | C63: =+'Input Prices'!$C$57 -> 0.06
A64: Interest on Investment | C64: =E34*C63 -> 331.1933237
A65: Maintenance | C65: =E37*C61 -> 113.4944364
A66: Total Cost | C66: =C62+C64+C65 -> 564.155588
A69: Fencing Tools
A70: T-Post Driver | B70: =+'Input Prices'!$C$43 -> 44
A71: Barb Wire Roller | B71: =+'Input Prices'!$C$44 -> 7.99
A72: Multi-Purpose Fence Pliers | B72: =+'Input Prices'!$C$45 -> 16.99
A73: Come along | B73: =+'Input Prices'!$C$48 -> 23.99
A74: Chain | B74: =+'Input Prices'!$C$50 -> 60
A75: 3⁄8" Ship Auger Drill Bit | B75: =+'Input Prices'!$C$46 -> 28.99
A76: Strainer Handle | B76: =+'Input Prices'!$C$47 -> 5.99
A77: Stretcher bar | B77: =+'Input Prices'!$C$49 -> 139.75
A78: Other | B78: 0
A79: Other | B79: 0
A80: Other | B80: 0
A81: Tax | B81: =SUM(B70:B80)*'Input Prices'!$C$39 -> 30.96765
A82: Total | B82: =SUM(B70:B81) -> 358.66765
A83: Cost per ft | B83: =B82/B5 -> 0.35866765
B86: braces | C86: roundup
A87: Fence Braces | B87: =1+($B$5/330) -> 4.03030303 | C87: =ROUNDUP(B87,0) -> 5
A88: Gate and Brace | B88: =B6 -> 1 | C88: =ROUNDUP(B88,0) -> 1
A89: Total | C89: =SUM(C87:C88) -> 6
A102: Woven Wire
B103: 1 | C103: Strands of barb wire
B104: 1000 | C104: Feet
B105: 1 | C105: Gate
B107: Brace Adjustment
B108: =+$C$89 -> 6 | C108: Braces
A111: ITEM | B111: UNIT | C111: PRICE | D111: QUANTITY | E111: TOTAL
A112: ='Input Prices'!A102 -> 8' Post 6"-7" | B112: ='Input Prices'!B105 -> ea. | C112: ='Input Prices'!$C$6 -> 17.5 | D112: =$B$9*Braces!$D$52 -> 12 | E112: =IF(D112>0,D112*$C112,0) -> 210
A113: ='Input Prices'!A103 -> 8' Posts 5"-6" | B113: ='Input Prices'!B106 -> ea. | C113: ='Input Prices'!$C$7 -> 14.99 | D113: 0 | E113: 0
A114: ='Input Prices'!A104 -> 8' Post 4"-5" | B114: ='Input Prices'!B107 -> roll | C114: ='Input Prices'!$C$8 -> 11.99 | D114: =IF(ROUNDUP((($B$5-(($B$9*Braces!$E$50)+($B$6*14)))/75)-(IF($C$87>2,$C$87-2,2)),0)<0,0,ROUNDUP((($B$5-(($B$9*Braces!$E$50)+($B$6*14)))/75)-(IF($C$87>2,$C$87-2,2)),0)) -> 10 | E114: 119.9
A115: =+Braces!$A$53 -> 8' Brace Post 4"-5" | B115: ='Input Prices'!B108 -> roll | C115: =+Braces!$C$53 -> 11.99 | D115: =$B$9*Braces!$D$53 -> 6 | E115: 71.94
A116: ='Input Prices'!A107 -> Wire Conv. 1047-6-11 | B116: ='Input Prices'!B128 -> roll | C116: ='Input Prices'!$C$29 -> 4.99 | D116: =ROUNDUP((($B$5-(($B$9*Braces!$E$50)+($B$6*14)))/15)-$D$15,0) -> 53 | E116: 264.47
A117: ='Input Prices'!A110 -> Barbed Wire - Conv. 12 1/2 | B117: ft. | C117: ='Input Prices'!$F$11 -> 1.112121212 | D117: 1000 | E117: 1112.121212
A118: ='Input Prices'!A111 -> Barbed Wire - HT 15 1/2 | B118: ft. | C118: ='Input Prices'!$F$12 -> 0.8333333333 | D118: 0 | E118: 0
A119: ='Input Prices'!A113 -> Brace pins 1 - 10" & 1 - 5" | B119: ft. | C119: ='Input Prices'!$F$14 -> 0.1022727273 | D119: 0 | E119: 0
A120: ='Input Prices'!A114 -> Brace Wire | B120: ft. | C120: ='Input Prices'!$F$15 -> 0.0454469697 | D120: =$B$5*$B$4 -> 1000 | E120: 45.4469697
A121: ='Input Prices'!A115 -> High Tensile Wire 12.5 Gauge | B121: ='Input Prices'!B115 -> ft. | C121: ='Input Prices'!$C$16 -> 181 | D121: =$B$6 -> 1 | E121: 181
A122: ='Input Prices'!A116 -> Springs | B122: ='Input Prices'!B116 -> ea. | C122: ='Input Prices'!$C$17 -> 2.16 | D122: =$B$9*Braces!$D$55 -> 6 | E122: 12.96
A123: ='Input Prices'!A117 -> Inline Strainers | B123: ='Input Prices'!B117 -> ea. | C123: ='Input Prices'!$F$18 -> 0.0349975 | D123: =$B$9*Braces!$D$56 -> 180 | E123: 6.29955
A124: ='Input Prices'!A120 -> Insulators | B124: ='Input Prices'!B120 -> ea. | C124: ='Input Prices'!$C$21 -> 3.49 | D124: =$B$9*Braces!$D$54 -> 6 | E124: 20.94
A125: ='Input Prices'!A127 -> Step-in Fiberglass Post | B125: ='Input Prices'!B127 -> ea. | C125: ='Input Prices'!$C$28 -> 1.99 | D125: =SUM($D$13:$D$15)*0.15 -> 3.3 | E125: 6.567
A126: ='Input Prices'!A129 -> Polytape | B126: ='Input Prices'!B129 -> roll | C126: ='Input Prices'!$C$30 -> 0.07 | D126: =$D$17*(5+$B$4) -> 318 | E126: 22.26
A127: Other | B127: unit | C127: 0 | D127: 0 | E127: 0
A128: Other | B128: unit | C128: 0 | D128: 0 | E128: 0
A129: Other | B129: unit | C129: 0 | D129: 0 | E129: 0
A130: Other | B130: unit | C130: 0 | D130: 0 | E130: 0
A131: ='Input Prices'!A39 -> Materials Sales Tax | B131: ='Input Prices'!B39 -> % | C131: ='Input Prices'!$C$39 -> 0.0945 | E131: =SUM(E112:E130)*($C$32) -> 195.9839972
A132: Labor Cost | B132: ft. | C132: 3.25 | D132: =+$B$5 -> 1000 | E132: =IF(D132>0,D132*$C132,0) -> 3250
A133: Total Cost | E133: =SUM(E112:E132) -> 5519.888729
A134: Total Cost Per Foot | E134: =E133/B104 -> 5.519888729
A136: Material Cost | E136: =SUM(E112:E131) -> 2269.888729
A137: Material Cost Per Foot | E137: =E136/B104 -> 2.269888729
A139: Labor Cost | E139: =SUM(E132:E132) -> 3250
A140: Labor Cost Per Foot | E140: =E139/B104 -> 3.25
A142: Annual Maintenance Cost | E142: =C165 -> 564.155588
A143: Annual Maintenance Cost Per Foot | E143: =E142/B104 -> 0.564155588
A145: Assumptions - UT Extension PB1541 & Manufacturers Specs
A146: Brace every 330 feet, double braces
A147: Inline strainer used to tension brace wire
A148: Wooden post every 75 feet
A149: T-Post every 15
A150: 8 Ft between brace posts
A151: All brace posts driven 48" in ground
A153: Labor Requirements - Source (UT Extension Custom Rate Survey - AE13-06)
A158: Annual Maintenance Cost | B158: Woven Wire
A159: Estimated Useful Life | C159: 19
A160: Average Annual Maintenance (%) | C160: =+'Input Prices'!$C$56 -> 0.05
A161: Depreciation | C161: =E136/C159 -> 119.4678278
A162: Interest Rate on Investment | C162: =+'Input Prices'!$C$57 -> 0.06
A163: Interest on Investment | C163: =E133*C162 -> 331.1933237
A164: Maintenance | C164: =E136*C160 -> 113.4944364
A165: Total Cost | C165: =C161+C163+C164 -> 564.155588
A168: Fencing Tools
A169: T-Post Driver | B169: =+'Input Prices'!$C$43 -> 44
A170: Barb Wire Roller | B170: =+'Input Prices'!$C$44 -> 7.99
A171: Multi-Purpose Fence Pliers | B171: =+'Input Prices'!$C$45 -> 16.99
A172: Come along | B172: =+'Input Prices'!$C$48 -> 23.99
A173: Chain | B173: =+'Input Prices'!$C$50 -> 60
A174: 3⁄8" Ship Auger Drill Bit | B174: =+'Input Prices'!$C$46 -> 28.99
A175: Strainer Handle | B175: =+'Input Prices'!$C$47 -> 5.99
A176: Stretcher bar | B176: =+'Input Prices'!$C$49 -> 139.75
A177: Other | B177: 0
A178: Other | B178: 0
A179: Other | B179: 0
A180: Tax | B180: =SUM(B169:B179)*'Input Prices'!$C$39 -> 30.96765
A181: Total | B181: =SUM(B169:B180) -> 358.66765
A182: Cost per ft | B182: =B181/B104 -> 0.35866765

Sheet HT Fixed Knot
A3: Fixed Knot Fence | L3: Directory
B4: 1 | C4: Strands of Barb wire | L4: Intro
B5: 1000 | C5: Feet | L5: Input Prices
B6: 1 | C6: Gates | L6: Barbed Wire
C7: Brace Type | L7: Woven Wire
B8: Brace Adjustment | L8: HT Electric
B9: =$C$86 -> 3 | C9: Braces | L9: Poly Fence
D11: Top Barbed Wire | G11: Your Cost
A12: ITEM | B12: UNIT | C12: PRICE | D12: QUANTITY | E12: TOTAL
A13: ='Input Prices'!A6 -> 8' Post 6"-7" | B13: ='Input Prices'!B6 -> ea. | C13: ='Input Prices'!$C$6 -> 17.5 | D13: =$B$9*Braces!$D$63 -> 6 | E13: =IF(D13>0,$C13*D13,0) -> 105
A14: ='Input Prices'!A7 -> 8' Posts 5"-6" | B14: ='Input Prices'!B7 -> ea. | C14: ='Input Prices'!$C$7 -> 14.99 | D14: 0 | E14: 0
A15: ='Input Prices'!A8 -> 8' Post 4"-5" | B15: ='Input Prices'!B8 -> ea. | C15: ='Input Prices'!$C$8 -> 11.99 | D15: =IF(ROUNDUP((($B$5-(($B$9*Braces!$E$61)+($B$6*14)))/75)-(IF($C$84>2,$C$84-2,2)),0)<0,0,ROUNDUP((($B$5-(($B$9*Braces!$E$61)+($B$6*14)))/75)-(IF($C$84>2,$C$84-2,2)),0)) -> 11 | E15: 131.89
A16: =+Braces!$A$64 -> 8' Brace Post 4"-5" | B16: ='Input Prices'!B10 -> ea. | C16: =+Braces!$C$64 -> 11.99 | D16: =$B$9*Braces!$D$64 -> 3 | E16: 35.97
A17: ='Input Prices'!A29 -> T-Posts 6 FT | B17: ='Input Prices'!B29 -> ea. | C17: ='Input Prices'!$C$29 -> 4.99 | D17: =ROUNDUP((($B$5-(($B$9*Braces!$E$61)+($B$6*14)))/15)-$D$15,0) -> 54 | E17: 269.46
A18: ='Input Prices'!A30 -> T-Post Clips | B18: ='Input Prices'!B30 -> ea. | C18: ='Input Prices'!$C$30 -> 0.07 | D18: =$D$17*(5+$B$4) -> 324 | E18: 22.68
A19: ='Input Prices'!A13 -> Wire HT 949-6 Fixed Knot | B19: ft. | C19: ='Input Prices'!$F$13 -> 0.8454545455 | D19: =$B$5 -> 1000 | E19: 845.4545455
A20: ='Input Prices'!A15 -> Barbed Wire - HT 15 1/2 | B20: ft. | C20: ='Input Prices'!$F$15 -> 0.0454469697 | D20: =$B$4*$B$5 -> 1000 | E20: 45.4469697
A21: ='Input Prices'!A16 -> Gate - 14' | B21: ='Input Prices'!B16 -> ea. | C21: ='Input Prices'!$C$16 -> 181 | D21: =$B$6 -> 1 | E21: 181
A22: ='Input Prices'!A17 -> Brace pins 1 - 10" & 1 - 5" | B22: ='Input Prices'!B17 -> ea. | C22: ='Input Prices'!$C$17 -> 2.16 | D22: =$B$9*Braces!$D$66 -> 3 | E22: 6.48
A23: ='Woven Wire'!A24 -> Brace Wire | B23: ='Woven Wire'!B24 -> ft. | C23: ='Input Prices'!$F$18 -> 0.0349975 | D23: =$B$9*Braces!$D$67 -> 90 | E23: 3.149775
A24: ='Input Prices'!A21 -> Inline Strainers | B24: ='Input Prices'!B21 -> ea. | C24: ='Input Prices'!$C$21 -> 3.49 | D24: =$B$9*Braces!$D$65 -> 3 | E24: 10.47
A25: ='Input Prices'!A25 -> Long Crimp Sleeves | B25: ='Input Prices'!B25 -> ea. | C25: ='Input Prices'!$C$25 -> 0.3 | D25: =IF($B$5<1320,9,ROUNDUP($B$5/1320,0)*9) -> 9 | E25: 2.7
A26: ='Input Prices'!A27 -> Staples - Barbed For HT | B26: ='Input Prices'!B27 -> lbs. | C26: ='Input Prices'!$C$27 -> 2.35 | D26: =SUM($D$13:$D$15)*0.15 -> 2.55 | E26: 5.9925
A27: Other | B27: unit | C27: 0 | D27: 0 | E27: 0
A28: Other | B28: unit | C28: 0 | D28: 0 | E28: 0
A29: Other | B29: unit | C29: 0 | D29: 0 | E29: =IF(D29>0,$C29*D29,0) -> 0
A30: Other | B30: unit | C30: 0 | D30: 0 | E30: 0
A31: ='Input Prices'!A39 -> Materials Sales Tax | B31: ='Input Prices'!B39 -> % | C31: ='Input Prices'!$C$39 -> 0.0945 | E31: =SUM(E13:E30)*$C$31 -> 157.4080632
A32: Labor Cost | B32: ft. | C32: 3.25 | D32: =+$B$5 -> 1000 | E32: =IF(D32>0,$C32*D32,0) -> 3250
A33: Total Cost | E33: =SUM(E13:E32) -> 5073.101853
A34: Total Cost Per Foot | E34: =E33/$B5 -> 5.073101853
A36: Material Cost | E36: =SUM(E13:E31) -> 1823.101853
A37: Material Cost Per Foot | E37: =E36/$B5 -> 1.823101853
A39: Labor Cost | E39: =SUM(E32:E32) -> 3250
A40: Labor Cost Per Foot | E40: =E39/$B5 -> 3.25
A42: Annual Cost | E42: =C64 -> 456.3112656
A43: Annual Cost Per Foot | E43: =E42/$B5 -> 0.4563112656
A45: Assumptions - (Manufacturers Specs)
A46: Brace every 1320 feet
A47: Inline strainer used to tension brace wire
A48: Wooden post every 75 feet
A49: T-Post every 15 feet
A52: Labor Requirements - Source (UT Extension Custom Rate Survey - AE13-06)
B54: Fixed Knot
B55: Treated Post
A57: Annual Cost | B57: Top Barbed Wire
A58: Estimated Useful Life | C58: 30
A59: Average Annual Maintenance (%) | C59: =+'Input Prices'!$C$56 -> 0.05
A60: Depreciation | C60: =E36/C58 -> 60.77006178
A61: Interest Rate on Investment | C61: =+'Input Prices'!$C$57 -> 0.06
A62: Interest on Investment | C62: =E33*C61 -> 304.3861112
A63: Maintenance | C63: =E36*C59 -> 91.15509267
A64: Total Cost | C64: =C60+C62+C63 -> 456.3112656
A66: Fencing Tools
A67: Item | B67: Quantity | C67: Cost | D67: Total
A68: Stretcher Bars | B68: 2 | C68: =+'Input Prices'!$C$49 -> 139.75 | D68: =B68*C68 -> 279.5
A69: Come along | B69: 1 | C69: =+'Input Prices'!$C$48 -> 23.99 | D69: 23.99
A70: T-Post driver | B70: 1 | C70: =+'Input Prices'!$C$43 -> 44 | D70: 44
A71: Multi-Function Fencing Tool | B71: 1 | C71: =+'Input Prices'!$C$51 -> 69.75 | D71: 69.75
A72: Strainer Handle | B72: 1 | C72: =+'Input Prices'!$C$47 -> 5.99 | D72: 5.99
A73: 3⁄8" Ship Auger Drill Bit | B73: 1 | C73: =+'Input Prices'!$C$46 -> 28.99 | D73: 28.99
A74: Other | C74: 0 | D74: 0
A75: Other | C75: 0 | D75: 0
A76: Other | C76: 0 | D76: 0
A77: Tax | D77: =SUM(D68:D76)*'Input Prices'!C39 -> 42.73479
A78: Total | D78: =SUM(D68:D77) -> 494.95479
A79: Cost Per Ft | D79: =D78/B5 -> 0.49495479
B83: braces | C83: roundup
A84: Fence Braces | B84: =1+(B5/1320) -> 1.757575758 | C84: =ROUNDUP(B84,0) -> 2
A85: Gate and Brace | B85: =B6 -> 1 | C85: =ROUNDUP(B85,0) -> 1
A86: Total | C86: =SUM(C84:C85) -> 3
A97: Fixed Knot Fence
B98: 1 | C98: Strands of barb wire
B99: 1000 | C99: Feet
B100: 1 | C100: Gate
B102: Brace Adjustment
B103: =$C$86 -> 3 | C103: Braces
D105: Top Barbed Wire
A106: ITEM | B106: UNIT | C106: PRICE | D106: QUANTITY | E106: TOTAL
A107: ='Input Prices'!A102 -> 8' Post 6"-7" | B107: ='Input Prices'!B102 -> ea. | C107: ='Input Prices'!$C$6 -> 17.5 | D107: =$B$9*Braces!$D$63 -> 6 | E107: =IF(D107>0,$C107*D107,0) -> 105
A108: ='Input Prices'!A103 -> 8' Posts 5"-6" | B108: ='Input Prices'!B103 -> ea. | C108: ='Input Prices'!$C$7 -> 14.99 | D108: 0 | E108: 0
A109: ='Input Prices'!A104 -> 8' Post 4"-5" | B109: ='Input Prices'!B102 -> ea. | C109: ='Input Prices'!$C$8 -> 11.99 | D109: =IF(ROUNDUP((($B$5-(($B$9*Braces!$E$61)+($B$6*14)))/75)-(IF($C$84>2,$C$84-2,2)),0)<0,0,ROUNDUP((($B$5-(($B$9*Braces!$E$61)+($B$6*14)))/75)-(IF($C$84>2,$C$84-2,2)),0)) -> 11 | E109: 131.89
A110: =+Braces!$A$64 -> 8' Brace Post 4"-5" | B110: ='Input Prices'!B104 -> ea. | C110: =+Braces!$C$64 -> 11.99 | D110: =$B$9*Braces!$D$64 -> 3 | E110: 35.97
A111: ='Input Prices'!A123 -> Staples - Barbed For HT | B111: ='Input Prices'!B123 -> lbs. | C111: ='Input Prices'!$C$29 -> 4.99 | D111: =ROUNDUP((($B$5-(($B$9*Braces!$E$61)+($B$6*14)))/15)-$D$15,0) -> 54 | E111: 269.46
A112: ='Input Prices'!A124 -> Staples - Standards | B112: ='Input Prices'!B124 -> lbs. | C112: ='Input Prices'!$C$30 -> 0.07 | D112: =$D$17*(5+$B$4) -> 324 | E112: 22.68
A113: ='Input Prices'!A107 -> Wire Conv. 1047-6-11 | B113: ft. | C113: ='Input Prices'!$F$13 -> 0.8454545455 | D113: =$B$5 -> 1000 | E113: 845.4545455
A114: ='Input Prices'!A109 -> Wire HT 949-6 Fixed Knot | B114: ft. | C114: ='Input Prices'!$F$15 -> 0.0454469697 | D114: =$B$4*$B$5 -> 1000 | E114: 45.4469697
A115: ='Input Prices'!A110 -> Barbed Wire - Conv. 12 1/2 | B115: ='Input Prices'!B110 -> roll | C115: ='Input Prices'!$C$16 -> 181 | D115: =$B$6 -> 1 | E115: 181
A116: ='Input Prices'!A111 -> Barbed Wire - HT 15 1/2 | B116: ='Input Prices'!B111 -> roll | C116: ='Input Prices'!$C$17 -> 2.16 | D116: =$B$9*Braces!$D$66 -> 3 | E116: 6.48
A117: ='Woven Wire'!A118 -> Barbed Wire - HT 15 1/2 | B117: ='Woven Wire'!B118 -> ft. | C117: ='Input Prices'!$F$18 -> 0.0349975 | D117: =$B$9*Braces!$D$67 -> 90 | E117: 3.149775
A118: ='Input Prices'!A115 -> High Tensile Wire 12.5 Gauge | B118: ='Input Prices'!B115 -> ft. | C118: ='Input Prices'!$C$21 -> 3.49 | D118: =$B$9*Braces!$D$65 -> 3 | E118: 10.47
A119: ='Input Prices'!A119 -> Batten Clips | B119: ='Input Prices'!B119 -> ea. | C119: ='Input Prices'!$C$25 -> 0.3 | D119: =IF($B$5<1320,9,ROUNDUP($B$5/1320,0)*9) -> 9 | E119: 2.7
A120: ='Input Prices'!A121 -> Long Crimp Sleeves | B120: ='Input Prices'!B121 -> ea. | C120: ='Input Prices'!$C$27 -> 2.35 | D120: =SUM($D$13:$D$15)*0.15 -> 2.55 | E120: 5.9925
A121: Other | B121: unit | C121: 0 | D121: 0 | E121: 0
A122: Other | B122: unit | C122: 0 | D122: 0 | E122: 0
A123: Other | B123: unit | C123: 0 | D123: 0 | E123: =IF(D123>0,$C123*D123,0) -> 0
A124: Other | B124: unit | C124: 0 | D124: 0 | E124: =IF(D124>0,$C124*D124,0) -> 0
A125: ='Input Prices'!A133 -> Electric Fence Charger | B125: ='Input Prices'!B133 -> ea. | C125: ='Input Prices'!$C$39 -> 0.0945 | E125: =SUM(E107:E124)*$C$31 -> 157.4080632
A126: Labor Cost | B126: ft. | C126: 3.25 | D126: =+$B$5 -> 1000 | E126: =IF(D126>0,$C126*D126,0) -> 3250
A127: Total Cost | E127: =SUM(E107:E126) -> 5073.101853
A128: Total Cost Per Foot | E128: =E127/$B99 -> 5.073101853
A130: Material Cost | E130: =SUM(E107:E125) -> 1823.101853
A131: Material Cost Per Foot | E131: =E130/$B99 -> 1.823101853
A133: Labor Cost | E133: =SUM(E126:E126) -> 3250
A134: Labor Cost Per Foot | E134: =E133/$B99 -> 3.25
A136: Annual Maintenance Cost | E136: =C158 -> 456.3112656
A137: Annual Maintenance Cost Per Foot | E137: =E136/$B99 -> 0.4563112656
A139: Assumptions - (Manufacturers Specs)
A140: Brace every 1320 feet, Single 10' Brace
A141: Inline strainer used to tension brace wire
A142: Wooden post every 75 feet
A143: T-Post every 15 feet
A144: 10 Ft between brace posts
A146: Labor Requirements - Source (UT Extension Custom Rate Survey - AE13-06)
B148: Fixed Knot
B149: Treated Post
B150: 949-12-330 + 1
A151: Annual Maintenance Cost | B151: Top Barbed Wire
A152: Estimated Useful Life | C152: 30
A153: Average Annual Maintenance (%) | C153: =+'Input Prices'!$C$56 -> 0.05
A154: Depreciation | C154: =E130/C152 -> 60.77006178
A155: Interest Rate on Investment | C155: =+'Input Prices'!$C$57 -> 0.06
A156: Interest on Investment | C156: =E127*C155 -> 304.3861112
A157: Maintenance | C157: =E130*C153 -> 91.15509267
A158: Total Cost | C158: =C154+C156+C157 -> 456.3112656
A160: Fencing Tools
A161: Item | B161: Quantity | C161: Cost | D161: Total
A162: Stretcher Bars | B162: 2 | C162: =+'Input Prices'!$C$49 -> 139.75 | D162: =B162*C162 -> 279.5
A163: Come along | B163: 1 | C163: =+'Input Prices'!$C$48 -> 23.99 | D163: 23.99
A164: T-Post driver | B164: 1 | C164: =+'Input Prices'!$C$43 -> 44 | D164: 44
A165: Multi-Function Fencing Tool | B165: 1 | C165: =+'Input Prices'!$C$51 -> 69.75 | D165: 69.75
A166: Strainer Handle | B166: 1 | C166: =+'Input Prices'!$C$47 -> 5.99 | D166: 5.99
A167: 3⁄8" Ship Auger Drill Bit | B167: 1 | C167: =+'Input Prices'!$C$46 -> 28.99 | D167: 28.99
A168: Other | C168: 0 | D168: 0
A169: Other | C169: 0 | D169: 0
A170: Other | C170: 0 | D170: 0
A171: Tax | D171: =SUM(D162:D170)*'Input Prices'!C39 -> 42.73479
A172: Total | D172: =SUM(D162:D171) -> 494.95479
A173: Cost Per Foot | D173: =D172/B99 -> 0.49495479

Sheet HT Electric
A3: High Tensile Electric | L3: Directory
B4: 4 | C4: Strand | L4: Intro
B5: =B4 -> 4 | C5: Hot Wires | L5: Input Prices
B6: 4000 | C6: Feet | L6: Barbed Wire
B7: 2 | C7: Gates | G7: Your Cost | L7: Woven Wire
C8: Brace Type | L8: HT Fixed Knot
B9: Brace Adjustment | L9: Poly Fence
B10: =$C$87 -> 7 | C10: Braces
A12: ITEM | B12: UNIT | C12: PRICE | D12: QUANTITY | E12: TOTAL
A13: ='Input Prices'!A6 -> 8' Post 6"-7" | B13: ='Input Prices'!B6 -> ea. | C13: ='Input Prices'!$C$6 -> 17.5 | D13: =$B$10*Braces!$D$74 -> 14 | E13: =IF(D13>0,$C13*D13,0) -> 245
A14: ='Input Prices'!A7 -> 8' Posts 5"-6" | B14: ='Input Prices'!B7 -> ea. | C14: ='Input Prices'!$C$7 -> 14.99 | D14: 0 | E14: 0
A15: ='Input Prices'!A8 -> 8' Post 4"-5" | B15: ='Input Prices'!B8 -> ea. | C15: ='Input Prices'!$C$8 -> 11.99 | D15: =IF(ROUNDUP((($B$6-(($B$10*Braces!$E$72)+($B$7*14)))/100)-(IF($C$85>2,$C$85-2,2)),0)<0,0,ROUNDUP((($B$6-(($B$10*Braces!$E$72)+($B$7*14)))/100)-(IF($C$85>2,$C$85-2,2)),0)) -> 37 | E15: 443.63
A16: =+Braces!$A$75 -> 8' Brace Post 4"-5" | B16: ='Input Prices'!B10 -> ea. | C16: =+Braces!$C$75 -> 11.99 | D16: =$B$10*Braces!$D$75 -> 7 | E16: 83.93
A17: ='Input Prices'!A19 -> High Tensile Wire 12.5 Gauge | B17: ='Input Prices'!B19 -> ft. | C17: ='Input Prices'!$F$19 -> 0.0349975 | D17: =SUM($B$4*$B$6) -> 16000 | E17: 559.96
A18: ='Input Prices'!A16 -> Gate - 14' | B18: ='Input Prices'!B16 -> ea. | C18: ='Input Prices'!$C$16 -> 181 | D18: =$B$7 -> 2 | E18: 362
A19: ='Input Prices'!A18 -> Brace Wire | B19: ='Input Prices'!B18 -> ft. | C19: ='Input Prices'!$F$18 -> 0.0349975 | D19: =$B$10*Braces!$D$78 -> 210 | E19: 7.349475
A20: ='Input Prices'!A20 -> Springs | B20: ='Input Prices'!B20 -> ea. | C20: ='Input Prices'!$C$20 -> 10.99 | D20: =$C$89*$B$4 -> 16 | E20: 175.84
A21: ='Input Prices'!A17 -> Brace pins 1 - 10" & 1 - 5" | B21: ='Input Prices'!B17 -> ea. | C21: ='Input Prices'!$C$17 -> 2.16 | D21: =$B$10*Braces!$D$77 -> 7 | E21: 15.12
A22: ='Input Prices'!A21 -> Inline Strainers | B22: ='Input Prices'!B21 -> ea. | C22: ='Input Prices'!$C$21 -> 3.49 | D22: =($B$4*$C$89)+2 -> 18 | E22: 62.82
A23: ='Input Prices'!A22 -> Battens 40" | B23: ='Input Prices'!B22 -> ea. | C23: ='Input Prices'!$C$22 -> 3.95 | D23: =IF($B$4<1.1,0,(IF($B$4>3.1,(ROUNDUP((($B$6-(($B$10*10)+($B$7*14)))/30)-(IF($C$85>2,$C$85-2,0)),0)-$C$89),(ROUNDUP((($B$6-(($B$10*10)+($B$7*14)))/50)-(IF($C$85>2,$C$85-2,0)),0)-$C$89)))) -> 124 | E23: 489.8
A24: ='Input Prices'!A23 -> Batten Clips | B24: ='Input Prices'!B23 -> ea. | C24: ='Input Prices'!$C$23 -> 0.06 | D24: =$D$23*$B$4 -> 496 | E24: 29.76
A25: ='Input Prices'!A27 -> Staples - Barbed For HT | B25: ='Input Prices'!B27 -> lbs. | C25: ='Input Prices'!$C$27 -> 2.35 | D25: =SUM($D$13:$D$15)*0.15 -> 7.65 | E25: 17.9775
A26: ='Input Prices'!A24 -> Insulators | B26: ='Input Prices'!B24 -> ea. | C26: ='Input Prices'!$C$24 -> 0.3 | D26: =(SUM($D$13:$D$15)-($C$89*2))*$B$5 -> 172 | E26: 51.6
A27: ='Input Prices'!A26 -> Bull Nose Insulators | B27: ='Input Prices'!B26 -> ea. | C27: ='Input Prices'!$C$26 -> 1.6 | D27: =IF($B$6<1320,($B$5*2),($B$5*($C$89*2))) -> 32 | E27: 51.2
A28: Charger | B28: ea. | C28: =+'Input Prices'!$C$37 -> 229 | D28: 0 | E28: 0
A29: Ground Rods and Clamps | B29: ea. | C29: =+'Input Prices'!$C$38 -> 20 | D29: 0 | E29: 0
A30: Other | B30: unit | C30: 0 | D30: 0 | E30: 0
A31: Other | B31: unit | C31: 0 | D31: 0 | E31: 0
A32: Other | B32: unit | C32: 0 | D32: 0 | E32: 0
A33: Other | B33: unit | C33: 0 | D33: 0 | E33: 0
A34: ='Input Prices'!A39 -> Materials Sales Tax | B34: ='Input Prices'!B39 -> % | C34: ='Input Prices'!$C$39 -> 0.0945 | E34: =SUM(E13:E33)*$C$34 -> 245.3207691
A35: Labor Cost | B35: ft. | C35: 2.03 | D35: =+$B$6 -> 4000 | E35: =IF(D35>0,$C35*D35,0) -> 8120
A36: Total Cost | E36: =SUM(E12:E35) -> 10961.30774
A37: Total Cost per Foot | E37: =E36/B6 -> 2.740326936
A39: Material Cost | E39: =SUM(E13:E34) -> 2841.307744
A40: Material Cost per Foot | E40: =E39/B6 -> 0.710326936
A42: Labor Cost | E42: =SUM(E35:E35) -> 8120
A43: Labor Cost per Foot | E43: =E42/B6 -> 2.03
A45: Annual Cost | E45: =C68 -> 894.45411
A46: Annual Cost Per Foot | E46: =E45/B6 -> 0.2236135275
A48: Assumptions - UT Extension PB1541 & Manufacturers Specs
A49: Brace every 1320 feet
A50: 40 - 150 Ft between line posts | D50: Wire Spacing (Inches) - Ground up
A51: 50 Ft between battens - 3 strand | D51: 1 Wire = 30
A52: 30 Ft between battens - 5 and 8 strand | D52: 2 Wire = 20-16
A53: All brace posts driven 48" in ground | D53: 3 Wire = 13-11-12
A54: Inline strainer used to tension brace wire | D54: 5 Wire = 6-7-8-9-10
A55: In this budget wood post are every 100'
A58: Labor Requirements - Source (UT Extension Custom Rate Survey - AE13-06)
B60: =+B4 -> 4 | C60: Strand
A61: Annual Cost | B61: =+B5 -> 4 | C61: Hot Wires
A62: Estimated Useful Life | C62: 30
A63: Average Annual Maintenance (%) | C63: =+'Input Prices'!$C$56 -> 0.05
A64: Depreciation | C64: =E39/C62 -> 94.71025814
A65: Interest Rate on Investment | C65: =+'Input Prices'!$C$57 -> 0.06
A66: Interest on Investment | C66: =E36*C65 -> 657.6784646
A67: Maintenance | C67: =E39*C63 -> 142.0653872
A68: Total Cost | C68: =C64+C66+C67 -> 894.45411
A71: Fencing Tools
A72: Spinning Jenny | B72: =+'Input Prices'!$C$52 -> 34.99
A73: Multi-Function Fencing Tool | B73: =+'Input Prices'!$C$51 -> 69.75
A74: Strainer Handle | B74: =+'Input Prices'!$C$47 -> 5.99
A75: 3⁄8" Ship Auger Drill Bit | B75: =+'Input Prices'!$C$46 -> 28.99
A76: Other | B76: 0
A77: Other | B77: 0
A78: Other | B78: 0
A79: Tax | B79: =SUM(B72:B78)*'Input Prices'!C39 -> 13.20354
A80: Total | B80: =SUM(B72:B79) -> 152.92354
A81: Cost Per Ft | B81: =B80/B6 -> 0.038230885
B84: number | C84: roundup
A85: Fence Braces | B85: =1+(B6/1320) -> 4.03030303 | C85: =ROUNDUP(B85,0) -> 5
A86: Gate and Brace | B86: =B7 -> 2 | C86: =ROUNDUP(B86,0) -> 2
A87: Total | C87: =SUM(C85:C86) -> 7
A88: Section | B88: =(B6/1320) -> 3.03030303 | C88: =ROUNDUP(B88,0) -> 4
A89: Total | C89: =SUM(C88:C88) -> 4
A97: High Tensile Electric
B98: 4 | C98: Strand
B99: =B98 -> 4 | C99: Hot Wires
B100: 4000 | C100: Feet
B101: 2 | C101: Gate | G101: Your Cost
B103: Brace Adjustment
B104: =$C$87 -> 7 | C104: Braces
A106: ITEM | B106: UNIT | C106: PRICE | D106: QUANTITY | E106: TOTAL
A107: ='Input Prices'!A102 -> 8' Post 6"-7" | B107: ='Input Prices'!B100 -> 0 | C107: ='Input Prices'!$C$6 -> 17.5 | D107: =$B$10*Braces!$D$74 -> 14 | E107: =IF(D107>0,$C107*D107,0) -> 245
A108: ='Input Prices'!A103 -> 8' Posts 5"-6" | B108: ='Input Prices'!B101 -> 0 | C108: ='Input Prices'!$C$7 -> 14.99 | D108: 0 | E108: 0
A109: ='Input Prices'!A104 -> 8' Post 4"-5" | B109: ='Input Prices'!B102 -> ea. | C109: ='Input Prices'!$C$8 -> 11.99 | D109: =IF(ROUNDUP((($B$6-(($B$10*Braces!$E$72)+($B$7*14)))/100)-(IF($C$85>2,$C$85-2,2)),0)<0,0,ROUNDUP((($B$6-(($B$10*Braces!$E$72)+($B$7*14)))/100)-(IF($C$85>2,$C$85-2,2)),0)) -> 37 | E109: 443.63
A110: =+Braces!$A$75 -> 8' Brace Post 4"-5" | B110: ='Input Prices'!B104 -> ea. | C110: =+Braces!$C$75 -> 11.99 | D110: =$B$10*Braces!$D$75 -> 7 | E110: 83.93
A111: ='Input Prices'!A113 -> Brace pins 1 - 10" & 1 - 5" | B111: ='Input Prices'!B113 -> ea. | C111: ='Input Prices'!$F$19 -> 0.0349975 | D111: =SUM($B$4*$B$6) -> 16000 | E111: 559.96
A112: ='Input Prices'!A110 -> Barbed Wire - Conv. 12 1/2 | B112: ='Input Prices'!B110 -> roll | C112: ='Input Prices'!$C$16 -> 181 | D112: =$B$7 -> 2 | E112: 362
A113: ='Input Prices'!A112 -> Gate - 14' | B113: ='Input Prices'!B112 -> ea. | C113: ='Input Prices'!$F$18 -> 0.0349975 | D113: =$B$10*Braces!$D$78 -> 210 | E113: 7.349475
A114: ='Input Prices'!A114 -> Brace Wire | B114: ='Input Prices'!B114 -> ft. | C114: ='Input Prices'!$C$20 -> 10.99 | D114: =$C$89*$B$4 -> 16 | E114: 175.84
A115: ='Input Prices'!A111 -> Barbed Wire - HT 15 1/2 | B115: ='Input Prices'!B111 -> roll | C115: ='Input Prices'!$C$17 -> 2.16 | D115: =$B$10*Braces!$D$77 -> 7 | E115: 15.12
A116: ='Input Prices'!A115 -> High Tensile Wire 12.5 Gauge | B116: ='Input Prices'!B115 -> ft. | C116: ='Input Prices'!$C$21 -> 3.49 | D116: =($B$4*$C$89)+2 -> 18 | E116: 62.82
A117: ='Input Prices'!A116 -> Springs | B117: ='Input Prices'!B116 -> ea. | C117: ='Input Prices'!$C$22 -> 3.95 | D117: =IF($B$4<1.1,0,(IF($B$4>3.1,(ROUNDUP((($B$6-(($B$10*10)+($B$7*14)))/30)-(IF($C$85>2,$C$85-2,0)),0)-$C$89),(ROUNDUP((($B$6-(($B$10*10)+($B$7*14)))/50)-(IF($C$85>2,$C$85-2,0)),0)-$C$89)))) -> 124 | E117: 489.8
A118: ='Input Prices'!A117 -> Inline Strainers | B118: ='Input Prices'!B117 -> ea. | C118: ='Input Prices'!$C$23 -> 0.06 | D118: =$D$23*$B$4 -> 496 | E118: 29.76
A119: ='Input Prices'!A121 -> Long Crimp Sleeves | B119: ='Input Prices'!B121 -> ea. | C119: ='Input Prices'!$C$27 -> 2.35 | D119: =SUM($D$13:$D$15)*0.15 -> 7.65 | E119: 17.9775
A120: ='Input Prices'!A118 -> Battens 40" | B120: ='Input Prices'!B118 -> ea. | C120: ='Input Prices'!$C$24 -> 0.3 | D120: =(SUM($D$13:$D$15)-($C$89*2))*$B$5 -> 172 | E120: 51.6
A121: ='Input Prices'!A120 -> Insulators | B121: ='Input Prices'!B120 -> ea. | C121: ='Input Prices'!$C$26 -> 1.6 | D121: =IF($B$6<1320,($B$5*2),($B$5*($C$89*2))) -> 32 | E121: 51.2
A122: Charger | B122: ea. | C122: =+'Input Prices'!$C$37 -> 229 | D122: 0 | E122: 0
A123: Ground Rods and Clamps | B123: ea. | C123: =+'Input Prices'!$C$38 -> 20 | D123: 0 | E123: 0
A124: Other | B124: unit | C124: 0 | D124: 0 | E124: 0
A125: Other | B125: unit | C125: 0 | D125: 0 | E125: 0
A126: Other | B126: unit | C126: 0 | D126: 0 | E126: 0
A127: Other | B127: unit | C127: 0 | D127: 0 | E127: 0
A128: ='Input Prices'!A133 -> Electric Fence Charger | B128: ='Input Prices'!B133 -> ea. | C128: ='Input Prices'!$C$39 -> 0.0945 | E128: =SUM(E107:E127)*$C$34 -> 245.3207691
A129: Labor Cost | B129: ft. | C129: 2.03 | D129: =+$B$6 -> 4000 | E129: =IF(D129>0,$C129*D129,0) -> 8120
A130: Total Cost | E130: =SUM(E106:E129) -> 10961.30774
A131: Total Cost per Foot | E131: =E130/B100 -> 2.740326936
A133: Material Cost | E133: =SUM(E107:E128) -> 2841.307744
A134: Material Cost per Foot | E134: =E133/B100 -> 0.710326936
A136: Labor Cost | E136: =SUM(E129:E129) -> 8120
A137: Labor Cost per Foot | E137: =E136/B100 -> 2.03
A139: Annual Maintenance Cost | E139: =C162 -> 894.45411
A140: Annual Maintenance Cost Per Foot | E140: =E139/B100 -> 0.2236135275
A142: Assumptions - UT Extension PB1541 & Manufacturers Specs
A143: Brace every 1320 feet
A144: 10 Ft between brace posts | D144: Wire Spacing (Inches) - Ground up
A145: 40 - 150 Ft between line posts | D145: 1 Wire = 30
A146: 50 Ft between battens - 3 strand | D146: 2 Wire = 20-16
A147: 30 Ft between battens - 5 and 8 strand | D147: 3 Wire = 13-11-12
A148: All brace posts driven 48" in ground | D148: 5 Wire = 6-7-8-9-10
A149: Inline strainer used to tension brace wire
A150: In this budget wood post are every 100'
A152: Labor Requirements - Source (UT Extension Custom Rate Survey - AE13-06)
B154: =+B98 -> 4 | C154: Strand
A155: Annual Maintenance Cost | B155: =+B99 -> 4 | C155: Hot Wires
A156: Estimated Useful Life | C156: 30
A157: Average Annual Maintenance (%) | C157: =+'Input Prices'!$C$56 -> 0.05
A158: Depreciation | C158: =E133/C156 -> 94.71025814
A159: Interest Rate on Investment | C159: =+'Input Prices'!$C$57 -> 0.06
A160: Interest on Investment | C160: =E130*C159 -> 657.6784646
A161: Maintenance | C161: =E133*C157 -> 142.0653872
A162: Total Cost | C162: =C158+C160+C161 -> 894.45411
A165: Fencing Tools
A166: Spinning Jenny | B166: =+'Input Prices'!$C$52 -> 34.99
A167: Multi-Function Fencing Tool | B167: =+'Input Prices'!$C$51 -> 69.75
A168: Strainer Handle | B168: =+'Input Prices'!$C$47 -> 5.99
A169: 3⁄8" Ship Auger Drill Bit | B169: =+'Input Prices'!$C$46 -> 28.99
A170: Other | B170: 0
A171: Other | B171: 0
A172: Other | B172: 0
A173: Tax | B173: =SUM(B166:B172)*'Input Prices'!C39 -> 13.20354
A174: Total | B174: =SUM(B166:B173) -> 152.92354
B175: =B174/B100 -> 0.038230885

Sheet Poly Fence
A3: Temporary Poly Fence
C4: 1000 | D4: Feet
G5: Directory
G6: Intro
D7: Poly Fence | G7: Input Prices
G8: Barbed Wire
A9: ITEM | B9: UNIT | C9: PRICE | D9: QUANTITY | E9: TOTAL | G9: Woven Wire
A10: ='Input Prices'!A8 -> 8' Post 4"-5" | B10: ='Input Prices'!B8 -> ea. | C10: ='Input Prices'!$C$8 -> 11.99 | D10: 0 | E10: =IF(D10>0,$C10*D10,0) -> 0 | G10: HT Fixed Knot
A11: ='Input Prices'!A31 -> Step-in Fiberglass Post | B11: ='Input Prices'!B31 -> ea. | C11: ='Input Prices'!$C$31 -> 2.69 | D11: =ROUNDUP($C$4/40,0) -> 25 | E11: 67.25 | G11: HT Electric | L11: =E11 -> 67.25 | M11: =#REF! -> 
A12: ='Input Prices'!A32 -> Polywire | B12: ft. | C12: ='Input Prices'!$F$32 -> 0.02743140244 | D12: =+$C$4 -> 1000 | E12: 27.43140244 | L12: 27.43140244 | M12: =#REF! -> 
A13: ='Input Prices'!A33 -> Polytape | B13: ft. | C13: ='Input Prices'!$F$33 -> 0.05 | D13: 0 | E13: 0 | L13: 0 | M13: =#REF! -> 
A14: ='Input Prices'!A34 -> Cut-Out Switch | B14: ='Input Prices'!B34 -> ea. | C14: ='Input Prices'!$C$34 -> 15.99 | D14: 1 | E14: 15.99 | L14: 15.99 | M14: =#REF! -> 
A15: ='Input Prices'!A35 -> Reel | B15: ='Input Prices'!B35 -> ea. | C15: ='Input Prices'!$C$35 -> 39 | D15: 1 | E15: 39 | L15: 39 | M15: =#REF! -> 
A16: ='Input Prices'!A36 -> Handle | B16: ='Input Prices'!B36 -> ea. | C16: ='Input Prices'!$C$36 -> 3.99 | D16: 1 | E16: 3.99 | L16: 3.99 | M16: =#REF! -> 
A17: ='Input Prices'!A24 -> Insulators | B17: ='Input Prices'!B24 -> ea. | C17: ='Input Prices'!$C$24 -> 0.3 | D17: 2 | E17: 0.6 | L17: 0.6 | M17: =#REF! -> 
A18: Charger | B18: ea. | C18: =+'Input Prices'!$C$37 -> 229 | D18: 0 | E18: 0 | L18: 0 | M18: =#REF! -> 
A19: Ground Rods and Clamps | B19: ea. | C19: =+'Input Prices'!$C$38 -> 20 | D19: 0 | E19: 0 | L19: 0 | M19: =#REF! -> 
A20: Other | B20: unit | C20: 0 | D20: 0 | E20: 0 | L20: 0 | M20: =#REF! -> 
A21: Other | B21: unit | C21: 0 | D21: 0 | E21: 0 | L21: 0 | M21: =#REF! -> 
A22: Other | B22: unit | C22: 0 | D22: 0 | E22: 0 | L22: 0 | M22: =#REF! -> 
A23: Other | B23: unit | C23: 0 | D23: 0 | E23: 0 | L23: 0 | M23: =#REF! -> 
A24: Materials Sales Tax | B24: % | C24: =+'Input Prices'!C39 -> 0.0945 | E24: =SUM(D24)*C24 -> 0 | L24: 0 | M24: =#REF! -> 
A25: Labor | B25: ft. | C25: 0 | D25: 0 | E25: =IF(D25>0,$C25*D25,0) -> 0 | L25: 0 | M25: =#REF! -> 
A26: Total Cost | E26: =SUM(E9:E25) -> 154.2614024
A27: Total Cost per Foot | E27: =E26/C4 -> 0.1542614024
A29: Material Cost | E29: =SUM(E10:E23) -> 154.2614024
A30: Material Cost per Foot | E30: =E29/C4 -> 0.1542614024
A32: Labor Cost | E32: =SUM(E23:E23) -> 0
A33: Labor Cost per Foot | E33: =E32/C4 -> 0
A35: Annual Cost | E35: =C49 -> 55.53410488
A36: Annual Cost Per Foot | E36: =E35/C4 -> 0.05553410488
A38: Assumptions
A39: Wood post on each end
A40: 40 ft. between each step-in post
A42: Annual Cost | C42: Total Cost
A43: Estimated Useful Life | C43: 4
A44: Average Annual Maintenance (%) | C44: =+'Input Prices'!$C$56 -> 0.05
A45: Depreciation | C45: =E29/C43 -> 38.56535061
A46: Interest Rate on Investment | C46: =+'Input Prices'!$C$57 -> 0.06
A47: Interest on Investment | C47: =E26*C46 -> 9.255684146
A48: Maintenance | C48: =E29*C44 -> 7.713070122
A49: Total Cost | C49: =C45+C47+C48 -> 55.53410488
C57: Temporary Poly Fence
C58: 1000 | D58: Feet
D61: Poly Fence
A63: ITEM | B63: UNIT | C63: PRICE | D63: QUANTITY | E63: TOTAL
A64: 8' Post 4"-5" | B64: ea. | C64: ='Input Prices'!$C$8 -> 11.99 | D64: 0 | E64: =IF(D64>0,$C64*D64,0) -> 0
A65: Step-in Fiberglass Post | B65: ea. | C65: ='Input Prices'!$C$31 -> 2.69 | D65: =ROUNDUP($C$4/40,0) -> 25 | E65: 67.25
A66: Polywire | B66: ft. | C66: ='Input Prices'!$F$32 -> 0.02743140244 | D66: =+$C$4 -> 1000 | E66: 27.43140244
A67: Polytape | B67: ft. | C67: ='Input Prices'!$F$33 -> 0.05 | D67: 0 | E67: 0
A68: Cut-Out Switch | B68: ea. | C68: ='Input Prices'!$C$34 -> 15.99 | D68: 1 | E68: 15.99
A69: Reel | B69: ea. | C69: ='Input Prices'!$C$35 -> 39 | D69: 1 | E69: 39
A70: Handle | B70: ea. | C70: ='Input Prices'!$C$36 -> 3.99 | D70: 1 | E70: 3.99
A71: Insulators | B71: ea. | C71: ='Input Prices'!$C$24 -> 0.3 | D71: 2 | E71: 0.6
A72: Charger | B72: ea. | C72: =+'Input Prices'!$C$37 -> 229 | D72: 0 | E72: 0
A73: Ground Rods and Clamps | B73: ea. | C73: =+'Input Prices'!$C$38 -> 20 | D73: 0 | E73: 0
A74: Other | B74: unit | C74: 0 | D74: 0 | E74: 0
A75: Other | B75: unit | C75: 0 | D75: 0 | E75: 0
A76: Other | B76: unit | C76: 0 | D76: 0 | E76: 0
A77: Other | B77: unit | C77: 0 | D77: 0 | E77: 0
A78: Materials Sales Tax | B78: % | C78: =+'Input Prices'!C$39 -> 0.0945 | E78: =SUM(E64:E77)*C78 -> 14.57770253
A79: Labor | B79: ft. | C79: 0 | D79: 0 | E79: =IF(D79>0,$C79*D79,0) -> 0
A80: Total Cost | E80: =SUM(E63:E79) -> 168.839105
A81: Total Cost per Foot | E81: =E80/C58 -> 0.168839105
A83: Material Cost | E83: =SUM(E64:E77) -> 154.2614024
A84: Material Cost per Foot | E84: =E83/C58 -> 0.1542614024
A86: Labor Cost | E86: =SUM(E77:E77) -> 0
A87: Labor Cost per Foot | E87: =E86/C58 -> 0
A89: Annual Maintenance Cost | E89: =C103 -> 52.07247901
A90: Annual Maintenance Cost Per Foot | E90: =E89/C58 -> 0.05207247901
A92: Assumptions
A93: Wood post on each end
A94: 40 ft. between each step-in post
A96: Annual Maintenance Cost | C96: Total Cost
A97: Estimated Useful Life | C97: 4
A98: Average Annual Maintenance (%) | C98: =+'Input Prices'!$C$56 -> 0.05
A99: Depreciation | C99: =E83/C97 -> 38.56535061
A100: Interest Rate on Investment | C100: =+'Input Prices'!$C$57 -> 0.06
A101: Interest on Investment | C101: =E80*0.5*C100 -> 5.065173149
A102: Maintenance | C102: =E80*C98 -> 8.441955248
A103: Total Cost | C103: =C99+C101+C102 -> 52.07247901
